[Event "Titled Tuesday Blitz December 20 Late 2022"]
[White "Muhammad, Shahzeb"]
[Black "monkins"]
[WhiteFideId "7804806"]
[WhiteElo "2392"]
[BlackElo "2241"]
[Result "1-0"]
[Round "09"]
[TimeControl "180+1"]
[Date "2022.12.21"]
[WhiteClock "0:00:13"]
[BlackClock "0:00:01"]

1. e4 {[%clk 0:03:00]}  c6 {[%clk 0:02:26]} 2. d4 {[%clk 0:02:47]}  d5 {[%clk 0:02:27]} 3. exd5 {[%clk 0:02:48]}  cxd5 {[%clk 0:02:27]} 4. c4 {[%clk 0:02:49]}  Nf6 {[%clk 0:02:27]} 5. Nc3 {[%clk 0:02:49]}  g6 {[%clk 0:02:27]} 6. Nf3 {[%clk 0:02:50]}  Bg7 {[%clk 0:02:27]} 7. Qb3 {[%clk 0:02:51]}  dxc4 {[%clk 0:02:26]} 8. Bxc4 {[%clk 0:02:51]}  O-O {[%clk 0:02:26]} 9. O-O {[%clk 0:02:51]}  Nc6 {[%clk 0:02:27]} 10. d5 {[%clk 0:02:43]}  Na5 {[%clk 0:02:25]} 11. Qb4 {[%clk 0:02:39]}  Nxc4 {[%clk 0:02:24]} 12. Qxc4 {[%clk 0:02:40]}  Bg4 {[%clk 0:02:07]} 13. Ne5 {[%clk 0:02:37]}  Bf5 {[%clk 0:02:01]} 14. Bg5 {[%clk 0:02:14]}  h6 {[%clk 0:01:53]} 15. Bh4 {[%clk 0:02:14]}  g5 {[%clk 0:01:35]} 16. Bg3 {[%clk 0:02:13]}  Rc8 {[%clk 0:01:22]} 17. Qb3 {[%clk 0:02:11]}  Nh5 {[%clk 0:00:58]} 18. Rfe1 {[%clk 0:02:09]}  Nxg3 {[%clk 0:00:51]} 19. hxg3 {[%clk 0:02:07]}  Qb6 {[%clk 0:00:43]} 20. Qxb6 {[%clk 0:02:03]}  axb6 {[%clk 0:00:44]} 21. g4 {[%clk 0:02:03]}  Bh7 {[%clk 0:00:37]} 22. Nd7 {[%clk 0:02:00]}  Rfe8 {[%clk 0:00:26]} 23. Nxb6 {[%clk 0:01:59]}  Rxc3 {[%clk 0:00:27]} 24. bxc3 {[%clk 0:01:54]}  Bxc3 {[%clk 0:00:27]} 25. Rac1 {[%clk 0:01:45]}  Bxe1 {[%clk 0:00:27]} 26. Rxe1 {[%clk 0:01:46]}  f5 {[%clk 0:00:25]} 27. gxf5 {[%clk 0:01:40]}  Bxf5 {[%clk 0:00:25]} 28. Re5 {[%clk 0:01:41]}  Bb1 {[%clk 0:00:19]} 29. a4 {[%clk 0:01:36]}  Kf7 {[%clk 0:00:17]} 30. Re6 {[%clk 0:01:31]}  h5 {[%clk 0:00:15]} 31. f3 {[%clk 0:01:27]}  Rd8 {[%clk 0:00:13]} 32. Kf2 {[%clk 0:01:25]}  Rd6 {[%clk 0:00:13]} 33. Rxd6 {[%clk 0:01:24]}  exd6 {[%clk 0:00:14]} 34. Nc4 {[%clk 0:01:15]}  Ba2 {[%clk 0:00:13]} 35. Nxd6+ {[%clk 0:01:14]}  Ke7 {[%clk 0:00:12]} 36. Nf5+ {[%clk 0:01:01]}  Kf6 {[%clk 0:00:11]} 37. Ne3 {[%clk 0:00:55]}  Ke5 {[%clk 0:00:10]} 38. Nd1 {[%clk 0:00:42]}  Bxd5 {[%clk 0:00:08]} 39. a5 {[%clk 0:00:42]}  Kd4 {[%clk 0:00:07]} 40. Ne3 {[%clk 0:00:36]}  Be6 {[%clk 0:00:07]} 41. Ke2 {[%clk 0:00:35]}  Kc5 {[%clk 0:00:08]} 42. Nc2 {[%clk 0:00:33]}  Bf5 {[%clk 0:00:05]} 43. Ne3 {[%clk 0:00:27]}  Bd7 {[%clk 0:00:06]} 44. Kd3 {[%clk 0:00:21]}  Kb5 {[%clk 0:00:06]} 45. Nc4 {[%clk 0:00:20]}  Be6 {[%clk 0:00:03]} 46. Nd6+ {[%clk 0:00:20]}  Kc6 {[%clk 0:00:03]} 47. Ne4 {[%clk 0:00:19]}  Bf5 {[%clk 0:00:03]} 48. Kd4 {[%clk 0:00:17]}  g4 {[%clk 0:00:03]} 49. Nf6 {[%clk 0:00:15]}  gxf3 {[%clk 0:00:02]} 50. gxf3 {[%clk 0:00:15]}  h4 {[%clk 0:00:03]} 51. Nh5 {[%clk 0:00:13]}  Kb5 {[%clk 0:00:01]} 52. Ke5 {[%clk 0:00:13]} 1-0


[Site "https://www.chess.com"]

[Event "Titled Tuesday Blitz December 20 Late 2022"]
[White "Nasir, Zehn"]
[Black "Olsen, Filip Boe"]
[WhiteFideId "2613239"]
[BlackFideId "1440640"]
[WhiteElo "1993"]
[BlackElo "2333"]
[Result "0-1"]
[Round "09"]
[TimeControl "180+1"]
[Date "2022.12.20"]
[WhiteClock "0:00:17"]
[BlackClock "0:00:20"]

1. d4 {[%clk 0:03:00]}  Nf6 {[%clk 0:02:59]} 2. Bf4 {[%clk 0:03:00]}  d5 {[%clk 0:02:57]} 3. e3 {[%clk 0:03:01]}  c5 {[%clk 0:02:57]} 4. c3 {[%clk 0:03:01]}  Nc6 {[%clk 0:02:57]} 5. Nd2 {[%clk 0:03:01]}  cxd4 {[%clk 0:02:57]} 6. exd4 {[%clk 0:03:01]}  Bf5 {[%clk 0:02:56]} 7. Qb3 {[%clk 0:03:01]}  Qb6 {[%clk 0:02:49]} 8. Qxb6 {[%clk 0:02:59]}  axb6 {[%clk 0:02:49]} 9. Ngf3 {[%clk 0:02:54]}  e6 {[%clk 0:02:45]} 10. Nh4 {[%clk 0:02:44]}  Bg6 {[%clk 0:02:43]} 11. Nxg6 {[%clk 0:02:44]}  hxg6 {[%clk 0:02:44]} 12. Bc7 {[%clk 0:02:33]}  Nd7 {[%clk 0:02:42]} 13. Bd3 {[%clk 0:02:31]}  Be7 {[%clk 0:02:40]} 14. O-O {[%clk 0:02:29]}  O-O {[%clk 0:02:33]} 15. g3 {[%clk 0:02:24]}  g5 {[%clk 0:02:31]} 16. g4 {[%clk 0:02:19]}  Rfc8 {[%clk 0:01:58]} 17. Bg3 {[%clk 0:02:19]}  Nf6 {[%clk 0:01:57]} 18. h3 {[%clk 0:02:15]}  Na5 {[%clk 0:01:52]} 19. Nf3 {[%clk 0:02:12]}  Nd7 {[%clk 0:01:48]} 20. Bb5 {[%clk 0:02:08]}  Nf8 {[%clk 0:01:45]} 21. Ne5 {[%clk 0:01:53]}  Nc6 {[%clk 0:01:40]} 22. Rfe1 {[%clk 0:01:50]}  f6 {[%clk 0:01:40]} 23. Nf3 {[%clk 0:01:45]}  Kf7 {[%clk 0:01:40]} 24. a3 {[%clk 0:01:43]}  Ng6 {[%clk 0:01:38]} 25. Re2 {[%clk 0:01:41]}  Rd8 {[%clk 0:01:38]} 26. Rae1 {[%clk 0:01:35]}  Nf8 {[%clk 0:01:38]} 27. Bc7 {[%clk 0:01:34]}  Rdc8 {[%clk 0:01:23]} 28. Bxb6 {[%clk 0:01:31]}  Bd6 {[%clk 0:01:05]} 29. Kg2 {[%clk 0:01:11]}  Ng6 {[%clk 0:01:03]} 30. Kf1 {[%clk 0:00:54]}  Nf4 {[%clk 0:01:03]} 31. Re3 {[%clk 0:00:52]}  Rh8 {[%clk 0:01:03]} 32. Ng1 {[%clk 0:00:51]}  Rhc8 {[%clk 0:00:44]} 33. Ne2 {[%clk 0:00:48]}  Ng6 {[%clk 0:00:43]} 34. Ng3 {[%clk 0:00:47]}  Re8 {[%clk 0:00:37]} 35. Nh5 {[%clk 0:00:46]}  Bf4 {[%clk 0:00:36]} 36. R3e2 {[%clk 0:00:44]}  Bd6 {[%clk 0:00:34]} 37. Bd3 {[%clk 0:00:44]}  Nf4 {[%clk 0:00:29]} 38. Nxf4 {[%clk 0:00:44]}  gxf4 {[%clk 0:00:29]} 39. f3 {[%clk 0:00:41]}  g5 {[%clk 0:00:26]} 40. Kg2 {[%clk 0:00:38]}  Re7 {[%clk 0:00:23]} 41. Rh1 {[%clk 0:00:34]}  Rh8 {[%clk 0:00:22]} 42. Bc5 {[%clk 0:00:29]}  Bxc5 {[%clk 0:00:22]} 43. dxc5 {[%clk 0:00:30]}  Ne5 {[%clk 0:00:19]} 44. Bb5 {[%clk 0:00:28]}  Rc7 {[%clk 0:00:17]} 45. b4 {[%clk 0:00:27]}  Rb8 {[%clk 0:00:18]} 46. h4 {[%clk 0:00:24]}  gxh4 {[%clk 0:00:15]} 47. Rxh4 {[%clk 0:00:24]}  Kg6 {[%clk 0:00:15]} 48. Rh1 {[%clk 0:00:17]}  b6 {[%clk 0:00:15]} 49. cxb6 {[%clk 0:00:17]}  Rxb6 {[%clk 0:00:16]} 50. Rc2 {[%clk 0:00:16]}  Rxb5 {[%clk 0:00:15]} 51. Rh8 {[%clk 0:00:15]}  Nc4 {[%clk 0:00:14]} 52. a4 {[%clk 0:00:14]}  Ne3+ {[%clk 0:00:14]} 53. Kf2 {[%clk 0:00:14]}  Nxc2 {[%clk 0:00:14]} 54. axb5 {[%clk 0:00:14]}  Rxc3 {[%clk 0:00:15]} 55. b6 {[%clk 0:00:13]}  Nxb4 {[%clk 0:00:15]} 56. b7 {[%clk 0:00:13]}  Nc6 {[%clk 0:00:16]} 57. Rc8 {[%clk 0:00:11]}  Rb3 {[%clk 0:00:15]} 58. Rxc6 {[%clk 0:00:10]}  Rxb7 {[%clk 0:00:15]} 59. Rxe6 {[%clk 0:00:11]}  Rb2+ {[%clk 0:00:16]} 60. Kf1 {[%clk 0:00:11]}  Kg5 {[%clk 0:00:17]} 61. Rd6 {[%clk 0:00:10]}  Kh4 {[%clk 0:00:17]} 62. Rxd5 {[%clk 0:00:09]}  Kg3 {[%clk 0:00:18]} 63. Rd3 {[%clk 0:00:07]}  Rf2+ {[%clk 0:00:18]} 64. Ke1 {[%clk 0:00:07]}  Rxf3 {[%clk 0:00:19]} 65. Rd6 {[%clk 0:00:08]}  Ra3 {[%clk 0:00:18]} 66. Rxf6 {[%clk 0:00:08]}  f3 {[%clk 0:00:17]} 67. g5 {[%clk 0:00:07]}  Ra1+ {[%clk 0:00:15]} 68. Kd2 {[%clk 0:00:07]}  Kg2 {[%clk 0:00:15]} 69. g6 {[%clk 0:00:07]}  f2 {[%clk 0:00:16]} 70. g7 {[%clk 0:00:06]}  Ra8 {[%clk 0:00:14]} 71. Ke2 {[%clk 0:00:05]}  Re8+ {[%clk 0:00:14]} 72. Kd3 {[%clk 0:00:05]}  f1=Q+ {[%clk 0:00:14]} 73. Rxf1 {[%clk 0:00:05]}  Kxf1 {[%clk 0:00:15]} 74. Kd4 {[%clk 0:00:06]}  Rg8 {[%clk 0:00:15]} 75. Ke5 {[%clk 0:00:06]}  Rxg7 {[%clk 0:00:16]} 76. Kf6 {[%clk 0:00:06]}  Rg2 {[%clk 0:00:16]} 77. Kf5 {[%clk 0:00:07]}  Kf2 {[%clk 0:00:17]} 78. Ke4 {[%clk 0:00:08]}  Rg3 {[%clk 0:00:18]} 79. Kf4 {[%clk 0:00:09]}  Re3 {[%clk 0:00:18]} 80. Kg4 {[%clk 0:00:09]}  Re8 {[%clk 0:00:17]} 81. Kf4 {[%clk 0:00:10]}  Ke2 {[%clk 0:00:17]} 82. Kg5 {[%clk 0:00:11]}  Kd3 {[%clk 0:00:18]} 83. Kg6 {[%clk 0:00:12]}  Rf8 {[%clk 0:00:18]} 84. Kg7 {[%clk 0:00:12]}  Rf1 {[%clk 0:00:19]} 85. Kg6 {[%clk 0:00:13]}  Ke4 {[%clk 0:00:19]} 86. Kg5 {[%clk 0:00:14]}  Rf2 {[%clk 0:00:19]} 87. Kg4 {[%clk 0:00:15]}  Rg2+ {[%clk 0:00:20]} 88. Kh3 {[%clk 0:00:15]}  Rg8 {[%clk 0:00:20]} 89. Kh4 {[%clk 0:00:16]}  Kf5 {[%clk 0:00:20]} 90. Kh5 {[%clk 0:00:17]}  Rh8# {[%clk 0:00:20]} 0-1


[Site "https://www.chess.com"]

[Event "Titled Tuesday Blitz December 20 Late 2022"]
[White "Postnikov, Artem"]
[Black "Piliczewski, Bogusz"]
[WhiteFideId "34153575"]
[BlackFideId "1104144"]
[WhiteElo "2243"]
[BlackElo "1896"]
[Result "1-0"]
[Round "09"]
[TimeControl "180+1"]
[Date "2022.12.21"]
[WhiteClock "0:01:01"]
[BlackClock "0:00:24"]

1. d4 {[%clk 0:03:00]}  d5 {[%clk 0:02:58]} 2. c4 {[%clk 0:03:01]}  c6 {[%clk 0:02:58]} 3. Nf3 {[%clk 0:03:01]}  Nf6 {[%clk 0:02:59]} 4. e3 {[%clk 0:03:00]}  e6 {[%clk 0:02:58]} 5. Nc3 {[%clk 0:03:00]}  Nbd7 {[%clk 0:02:58]} 6. Qc2 {[%clk 0:03:01]}  Bd6 {[%clk 0:02:58]} 7. Bd3 {[%clk 0:03:01]}  O-O {[%clk 0:02:57]} 8. O-O {[%clk 0:03:02]}  Qe7 {[%clk 0:02:55]} 9. e4 {[%clk 0:02:51]}  dxc4 {[%clk 0:02:55]} 10. Bxc4 {[%clk 0:02:51]}  e5 {[%clk 0:02:55]} 11. h3 {[%clk 0:02:48]}  exd4 {[%clk 0:02:43]} 12. Nxd4 {[%clk 0:02:47]}  Ne5 {[%clk 0:02:43]} 13. Bb3 {[%clk 0:02:42]}  c5 {[%clk 0:02:41]} 14. Nf5 {[%clk 0:02:33]}  Bxf5 {[%clk 0:02:40]} 15. exf5 {[%clk 0:02:34]}  c4 {[%clk 0:02:34]} 16. Ba4 {[%clk 0:02:33]}  a6 {[%clk 0:02:34]} 17. Qe2 {[%clk 0:02:28]}  b5 {[%clk 0:02:32]} 18. Bc2 {[%clk 0:02:28]}  Rfe8 {[%clk 0:02:24]} 19. Bg5 {[%clk 0:02:25]}  h6 {[%clk 0:02:16]} 20. Nd5 {[%clk 0:02:21]}  Qd8 {[%clk 0:02:02]} 21. Bxf6 {[%clk 0:02:03]}  gxf6 {[%clk 0:02:00]} 22. Qh5 {[%clk 0:02:01]}  Bf8 {[%clk 0:01:46]} 23. Rad1 {[%clk 0:01:55]}  Nd3 {[%clk 0:01:35]} 24. Nf4 {[%clk 0:01:12]}  Qd4 {[%clk 0:00:37]} 25. Nxd3 {[%clk 0:01:06]}  cxd3 {[%clk 0:00:37]} 26. Rxd3 {[%clk 0:01:06]}  Qxb2 {[%clk 0:00:36]} 27. Bb3 {[%clk 0:01:02]}  Re7 {[%clk 0:00:33]} 28. Rg3+ {[%clk 0:01:02]}  Bg7 {[%clk 0:00:33]} 29. Qxh6 {[%clk 0:01:01]}  Kf8 {[%clk 0:00:24]} 30. Qxg7+ {[%clk 0:00:59]}  Ke8 {[%clk 0:00:24]} 31. Qg8+ {[%clk 0:01:00]}  Kd7 {[%clk 0:00:24]} 32. Qxa8 {[%clk 0:01:01]} 1-0


[Site "https://www.chess.com"]

[Event "Titled Tuesday Blitz December 20 Late 2022"]
[White "Przybylski, Wojciech"]
[Black "Han, Yichen"]
[WhiteFideId "1117599"]
[BlackFideId "1054430"]
[WhiteElo "2508"]
[BlackElo "2658"]
[Result "1-0"]
[Round "09"]
[TimeControl "180+1"]
[Date "2022.12.21"]
[WhiteClock "0:00:33"]
[BlackClock "0:00:02"]

1. e4 {[%clk 0:02:56]}  c6 {[%clk 0:02:59]} 2. d4 {[%clk 0:02:55]}  d5 {[%clk 0:02:58]} 3. e5 {[%clk 0:02:55]}  g6 {[%clk 0:02:54]} 4. Nf3 {[%clk 0:02:56]}  Bg7 {[%clk 0:02:55]} 5. Be2 {[%clk 0:02:55]}  f6 {[%clk 0:02:55]} 6. O-O {[%clk 0:02:55]}  Bg4 {[%clk 0:02:54]} 7. Re1 {[%clk 0:02:53]}  Nd7 {[%clk 0:02:50]} 8. Bf4 {[%clk 0:02:49]}  Qb6 {[%clk 0:02:46]} 9. Nbd2 {[%clk 0:02:47]}  O-O-O {[%clk 0:02:39]} 10. c4 {[%clk 0:02:44]}  fxe5 {[%clk 0:02:15]} 11. Nxe5 {[%clk 0:02:41]}  Bxe2 {[%clk 0:02:10]} 12. Qxe2 {[%clk 0:02:36]}  Qxd4 {[%clk 0:02:04]} 13. Nxd7 {[%clk 0:02:21]}  Rxd7 {[%clk 0:01:34]} 14. Be3 {[%clk 0:02:14]}  Qe5 {[%clk 0:01:31]} 15. cxd5 {[%clk 0:02:10]}  Rxd5 {[%clk 0:01:26]} 16. Nc4 {[%clk 0:02:07]}  Qe6 {[%clk 0:01:19]} 17. Qc2 {[%clk 0:01:39]}  Qf5 {[%clk 0:01:17]} 18. Qa4 {[%clk 0:01:35]}  Bd4 {[%clk 0:00:37]} 19. Bxd4 {[%clk 0:01:35]}  Rxd4 {[%clk 0:00:38]} 20. Nb6+ {[%clk 0:01:34]}  axb6 {[%clk 0:00:37]} 21. Qxd4 {[%clk 0:01:34]}  Nf6 {[%clk 0:00:36]} 22. Rxe7 {[%clk 0:01:32]}  Rd8 {[%clk 0:00:32]} 23. Qxb6 {[%clk 0:01:30]}  Rd7 {[%clk 0:00:30]} 24. Rxd7 {[%clk 0:01:19]}  Nxd7 {[%clk 0:00:31]} 25. Qd4 {[%clk 0:01:14]}  c5 {[%clk 0:00:22]} 26. Qh8+ {[%clk 0:01:07]}  Kc7 {[%clk 0:00:22]} 27. Qxh7 {[%clk 0:01:07]}  Qc2 {[%clk 0:00:20]} 28. Qg7 {[%clk 0:01:06]}  c4 {[%clk 0:00:15]} 29. h4 {[%clk 0:01:00]}  b5 {[%clk 0:00:13]} 30. Re1 {[%clk 0:00:56]}  b4 {[%clk 0:00:08]} 31. Qd4 {[%clk 0:00:53]}  Qd3 {[%clk 0:00:03]} 32. Qa7+ {[%clk 0:00:49]}  Kd6 {[%clk 0:00:03]} 33. Qa6+ {[%clk 0:00:46]}  Kc7 {[%clk 0:00:03]} 34. Qa5+ {[%clk 0:00:45]}  Kd6 {[%clk 0:00:03]} 35. Qxb4+ {[%clk 0:00:45]}  Nc5 {[%clk 0:00:03]} 36. a4 {[%clk 0:00:38]}  Kd5 {[%clk 0:00:03]} 37. a5 {[%clk 0:00:37]}  Qc2 {[%clk 0:00:03]} 38. a6 {[%clk 0:00:34]}  Nxa6 {[%clk 0:00:02]} 39. Qb7+ {[%clk 0:00:33]} 1-0


[Site "https://www.chess.com"]

[Event "Titled Tuesday Blitz December 20 Late 2022"]
[White "Rangel, Daniel"]
[Black "Barria Zuniga, Daniel"]
[WhiteFideId "2124475"]
[BlackFideId "3400816"]
[WhiteElo "2225"]
[BlackElo "2414"]
[Result "0-1"]
[Round "09"]
[TimeControl "180+1"]
[Date "2022.12.21"]
[WhiteClock "0:00:16"]
[BlackClock "0:00:41"]

1. d4 {[%clk 0:02:57]}  g6 {[%clk 0:02:38]} 2. c4 {[%clk 0:02:58]}  Bg7 {[%clk 0:02:34]} 3. Nc3 {[%clk 0:02:58]}  c5 {[%clk 0:02:33]} 4. d5 {[%clk 0:02:57]}  Bxc3+ {[%clk 0:02:33]} 5. bxc3 {[%clk 0:02:57]}  Qa5 {[%clk 0:02:34]} 6. Bd2 {[%clk 0:02:55]}  f5 {[%clk 0:02:32]} 7. f3 {[%clk 0:02:52]}  Nf6 {[%clk 0:02:29]} 8. Nh3 {[%clk 0:02:52]}  d6 {[%clk 0:02:29]} 9. Nf2 {[%clk 0:02:51]}  Nbd7 {[%clk 0:02:29]} 10. e3 {[%clk 0:02:44]}  Ne5 {[%clk 0:02:28]} 11. h3 {[%clk 0:02:39]}  Bd7 {[%clk 0:02:27]} 12. f4 {[%clk 0:02:37]}  Nf7 {[%clk 0:02:26]} 13. g4 {[%clk 0:02:36]}  O-O-O {[%clk 0:02:23]} 14. g5 {[%clk 0:02:34]}  Nh5 {[%clk 0:02:21]} 15. Rg1 {[%clk 0:02:33]}  e5 {[%clk 0:02:21]} 16. dxe6 {[%clk 0:02:25]}  Bxe6 {[%clk 0:02:20]} 17. Rb1 {[%clk 0:02:23]}  Rhe8 {[%clk 0:02:18]} 18. Qb3 {[%clk 0:02:18]}  b6 {[%clk 0:02:06]} 19. Bg2 {[%clk 0:02:08]}  Nxf4 {[%clk 0:02:00]} 20. Bc6 {[%clk 0:02:08]}  Bd7 {[%clk 0:01:55]} 21. Bxd7+ {[%clk 0:01:39]}  Rxd7 {[%clk 0:01:56]} 22. Kd1 {[%clk 0:01:38]}  Ne6 {[%clk 0:01:49]} 23. Qc2 {[%clk 0:01:35]}  Ne5 {[%clk 0:01:41]} 24. Qb3 {[%clk 0:01:19]}  Red8 {[%clk 0:01:22]} 25. Kc2 {[%clk 0:01:10]}  Qa6 {[%clk 0:01:17]} 26. Qb5 {[%clk 0:01:05]}  Kb7 {[%clk 0:01:17]} 27. Qxa6+ {[%clk 0:01:03]}  Kxa6 {[%clk 0:01:18]} 28. Kb3 {[%clk 0:01:00]}  Nc6 {[%clk 0:01:16]} 29. Kc2 {[%clk 0:00:50]}  Na5 {[%clk 0:01:15]} 30. h4 {[%clk 0:00:51]}  Nxc4 {[%clk 0:01:14]} 31. Bc1 {[%clk 0:00:51]}  d5 {[%clk 0:01:13]} 32. Nd3 {[%clk 0:00:50]}  d4 {[%clk 0:01:10]} 33. cxd4 {[%clk 0:00:49]}  cxd4 {[%clk 0:01:11]} 34. Nb4+ {[%clk 0:00:49]}  Kb7 {[%clk 0:01:10]} 35. exd4 {[%clk 0:00:44]}  Nxd4+ {[%clk 0:01:10]} 36. Kc3 {[%clk 0:00:44]}  Rc8 {[%clk 0:01:00]} 37. Rh1 {[%clk 0:00:33]}  a5 {[%clk 0:00:49]} 38. Nd3 {[%clk 0:00:21]}  Ne5+ {[%clk 0:00:48]} 39. Kd2 {[%clk 0:00:17]}  Ndf3+ {[%clk 0:00:46]} 40. Ke2 {[%clk 0:00:16]}  Rxd3 {[%clk 0:00:41]} 41. Be3 {[%clk 0:00:16]}  Rc2+ {[%clk 0:00:41]} 0-1


[Site "https://www.chess.com"]

[Event "Titled Tuesday Blitz December 20 Late 2022"]
[White "Ronka, Erik"]
[Black "Fernandez De La Vara, Arnaldo"]
[WhiteFideId "505080"]
[BlackFideId "3518388"]
[WhiteElo "2264"]
[BlackElo "2387"]
[Result "1-0"]
[Round "09"]
[TimeControl "180+1"]
[Date "2022.12.20"]
[WhiteClock "0:00:16"]
[BlackClock "0:00:42"]

1. e4 {[%clk 0:03:00]}  c5 {[%clk 0:03:00]} 2. Nf3 {[%clk 0:03:01]}  e6 {[%clk 0:03:00]} 3. d4 {[%clk 0:03:00]}  cxd4 {[%clk 0:03:01]} 4. Nxd4 {[%clk 0:03:01]}  a6 {[%clk 0:03:01]} 5. Nc3 {[%clk 0:03:01]}  Qc7 {[%clk 0:03:02]} 6. Bd3 {[%clk 0:03:02]}  Nf6 {[%clk 0:03:02]} 7. f4 {[%clk 0:03:00]}  d6 {[%clk 0:03:03]} 8. Qf3 {[%clk 0:03:00]}  b5 {[%clk 0:03:03]} 9. g4 {[%clk 0:02:46]}  Bb7 {[%clk 0:02:56]} 10. g5 {[%clk 0:02:45]}  Nfd7 {[%clk 0:02:57]} 11. h4 {[%clk 0:02:37]}  Nc6 {[%clk 0:02:55]} 12. Be3 {[%clk 0:02:29]}  b4 {[%clk 0:02:50]} 13. Nce2 {[%clk 0:02:28]}  Nc5 {[%clk 0:02:50]} 14. h5 {[%clk 0:02:22]}  e5 {[%clk 0:02:12]} 15. Nxc6 {[%clk 0:02:05]}  Qxc6 {[%clk 0:02:13]} 16. fxe5 {[%clk 0:02:02]}  dxe5 {[%clk 0:01:57]} 17. Rf1 {[%clk 0:01:51]}  Nxd3+ {[%clk 0:01:36]} 18. cxd3 {[%clk 0:01:50]}  Qe6 {[%clk 0:01:37]} 19. d4 {[%clk 0:01:00]}  exd4 {[%clk 0:01:37]} 20. Nxd4 {[%clk 0:01:01]}  Qe7 {[%clk 0:01:36]} 21. Nf5 {[%clk 0:00:49]}  Qxe4 {[%clk 0:01:35]} 22. Nxg7+ {[%clk 0:00:33]}  Kd8 {[%clk 0:01:20]} 23. Rd1+ {[%clk 0:00:23]}  Kc8 {[%clk 0:01:14]} 24. Rc1+ {[%clk 0:00:16]}  Kd8 {[%clk 0:00:52]} 25. Qf6+ {[%clk 0:00:16]}  Be7 {[%clk 0:00:42]} 26. Qb6+ {[%clk 0:00:16]} 1-0


[Site "https://www.chess.com"]

[Event "Titled Tuesday Blitz December 20 Late 2022"]
[White "Rosenberg, Evan S"]
[Black "Ferreira, Vitor Hugo Vieira"]
[WhiteFideId "2019299"]
[BlackFideId "2119765"]
[WhiteElo "2412"]
[BlackElo "2146"]
[Result "0-1"]
[Round "09"]
[TimeControl "180+1"]
[Date "2022.12.21"]
[WhiteClock "0:00:25"]
[BlackClock "0:01:45"]

1. d4 {[%clk 0:03:00]}  d5 {[%clk 0:02:59]} 2. Nf3 {[%clk 0:03:01]}  Nf6 {[%clk 0:02:59]} 3. c3 {[%clk 0:03:01]}  Bf5 {[%clk 0:02:59]} 4. Qb3 {[%clk 0:03:01]}  b6 {[%clk 0:02:57]} 5. Ne5 {[%clk 0:02:56]}  c6 {[%clk 0:02:52]} 6. g3 {[%clk 0:02:48]}  Nfd7 {[%clk 0:02:52]} 7. Nxc6 {[%clk 0:02:16]}  Nxc6 {[%clk 0:02:51]} 8. Qxd5 {[%clk 0:02:17]}  Bxb1 {[%clk 0:02:51]} 9. Rxb1 {[%clk 0:02:04]}  Rc8 {[%clk 0:02:48]} 10. Bg2 {[%clk 0:01:42]}  Nf6 {[%clk 0:02:48]} 11. Qb5 {[%clk 0:01:19]}  Qd7 {[%clk 0:02:48]} 12. O-O {[%clk 0:00:57]}  e6 {[%clk 0:02:48]} 13. e4 {[%clk 0:00:54]}  Be7 {[%clk 0:02:44]} 14. d5 {[%clk 0:00:52]}  Ne5 {[%clk 0:02:41]} 15. Qa6 {[%clk 0:00:40]}  O-O {[%clk 0:02:38]} 16. Bf4 {[%clk 0:00:35]}  Ng6 {[%clk 0:02:36]} 17. Bg5 {[%clk 0:00:26]}  exd5 {[%clk 0:02:33]} 18. exd5 {[%clk 0:00:24]}  Nxd5 {[%clk 0:02:28]} 19. Bxe7 {[%clk 0:00:21]}  Ndxe7 {[%clk 0:02:27]} 20. Rbd1 {[%clk 0:00:21]}  Qc7 {[%clk 0:02:25]} 21. Rfe1 {[%clk 0:00:21]}  Rfd8 {[%clk 0:02:21]} 22. h4 {[%clk 0:00:21]}  Rxd1 {[%clk 0:02:19]} 23. Rxd1 {[%clk 0:00:21]}  h6 {[%clk 0:02:17]} 24. h5 {[%clk 0:00:21]}  Nf8 {[%clk 0:02:15]} 25. Bh3 {[%clk 0:00:20]}  Rb8 {[%clk 0:02:11]} 26. Rd4 {[%clk 0:00:17]}  Qb7 {[%clk 0:02:11]} 27. Qd3 {[%clk 0:00:15]}  Nc6 {[%clk 0:02:10]} 28. Rd6 {[%clk 0:00:09]}  Ne5 {[%clk 0:02:09]} 29. Qe3 {[%clk 0:00:09]}  Nf3+ {[%clk 0:02:08]} 30. Kf1 {[%clk 0:00:09]}  Ng5 {[%clk 0:02:05]} 31. Bg2 {[%clk 0:00:09]}  Qa6+ {[%clk 0:02:04]} 32. Kg1 {[%clk 0:00:09]}  Qxa2 {[%clk 0:02:03]} 33. Qe7 {[%clk 0:00:06]}  Qxb2 {[%clk 0:01:56]} 34. Rd8 {[%clk 0:00:06]}  Rxd8 {[%clk 0:01:56]} 35. Qxd8 {[%clk 0:00:06]}  Qxc3 {[%clk 0:01:55]} 36. f4 {[%clk 0:00:06]}  Nf3+ {[%clk 0:01:52]} 37. Kf2 {[%clk 0:00:06]}  Qd4+ {[%clk 0:01:52]} 38. Qxd4 {[%clk 0:00:06]}  Nxd4 {[%clk 0:01:53]} 39. Ke3 {[%clk 0:00:06]}  Nde6 {[%clk 0:01:52]} 40. g4 {[%clk 0:00:05]}  Nd7 {[%clk 0:01:50]} 41. Bh3 {[%clk 0:00:04]}  Kf8 {[%clk 0:01:49]} 42. Kf3 {[%clk 0:00:04]}  Ke7 {[%clk 0:01:48]} 43. Kg3 {[%clk 0:00:05]}  Kd6 {[%clk 0:01:48]} 44. Bg2 {[%clk 0:00:04]}  a5 {[%clk 0:01:48]} 45. Be4 {[%clk 0:00:04]}  a4 {[%clk 0:01:47]} 46. Bb1 {[%clk 0:00:05]}  a3 {[%clk 0:01:47]} 47. Ba2 {[%clk 0:00:06]}  Ndc5 {[%clk 0:01:46]} 48. Kf3 {[%clk 0:00:07]}  Nd4+ {[%clk 0:01:46]} 49. Ke3 {[%clk 0:00:06]}  Nb5 {[%clk 0:01:46]} 50. Kd2 {[%clk 0:00:05]}  Na4 {[%clk 0:01:45]} 51. Kc2 {[%clk 0:00:05]}  Nbc3 {[%clk 0:01:45]} 52. Bb3 {[%clk 0:00:05]}  a2 {[%clk 0:01:46]} 53. Bxa2 {[%clk 0:00:05]}  Nxa2 {[%clk 0:01:46]} 54. Kb3 {[%clk 0:00:06]}  N2c3 {[%clk 0:01:46]} 55. g5 {[%clk 0:00:07]}  Ke6 {[%clk 0:01:45]} 56. gxh6 {[%clk 0:00:06]}  gxh6 {[%clk 0:01:45]} 57. Kc2 {[%clk 0:00:07]}  Kf5 {[%clk 0:01:45]} 58. Kd3 {[%clk 0:00:08]}  Kxf4 {[%clk 0:01:46]} 59. Kc4 {[%clk 0:00:08]}  Kg5 {[%clk 0:01:46]} 60. Kd4 {[%clk 0:00:08]}  Kxh5 {[%clk 0:01:47]} 61. Ke3 {[%clk 0:00:09]}  Kg5 {[%clk 0:01:48]} 62. Kf2 {[%clk 0:00:10]}  Nd5 {[%clk 0:01:48]} 63. Kg1 {[%clk 0:00:11]}  Nc5 {[%clk 0:01:49]} 64. Kh2 {[%clk 0:00:12]}  Nb7 {[%clk 0:01:49]} 65. Kh3 {[%clk 0:00:13]}  Nd8 {[%clk 0:01:50]} 66. Kg3 {[%clk 0:00:14]}  Nc7 {[%clk 0:01:51]} 67. Kf3 {[%clk 0:00:14]}  Ne8 {[%clk 0:01:52]} 68. Ke4 {[%clk 0:00:15]}  h5 {[%clk 0:01:52]} 69. Kd5 {[%clk 0:00:16]}  h4 {[%clk 0:01:53]} 70. Kc4 {[%clk 0:00:17]}  h3 {[%clk 0:01:54]} 71. Kb5 {[%clk 0:00:18]}  h2 {[%clk 0:01:54]} 72. Kxb6 {[%clk 0:00:19]}  h1=Q {[%clk 0:01:54]} 73. Kc5 {[%clk 0:00:20]}  Qd1 {[%clk 0:01:53]} 74. Kc4 {[%clk 0:00:20]}  Nd6+ {[%clk 0:01:53]} 75. Kc3 {[%clk 0:00:21]}  Ne4+ {[%clk 0:01:51]} 76. Kb2 {[%clk 0:00:22]}  Qd2+ {[%clk 0:01:51]} 77. Ka1 {[%clk 0:00:22]}  Qg2 {[%clk 0:01:48]} 78. Kb1 {[%clk 0:00:22]}  Nc6 {[%clk 0:01:45]} 79. Ka1 {[%clk 0:00:23]}  Nb4 {[%clk 0:01:45]} 80. Kb1 {[%clk 0:00:24]}  Qc2+ {[%clk 0:01:44]} 81. Ka1 {[%clk 0:00:25]}  Qa2# {[%clk 0:01:45]} 0-1


[Site "https://www.chess.com"]